fUST/lending_fUST_20240918
["ID","MTS","AMOUNT","RATE_DAILY","PERIOD"]
[338451667,1726646580388,828.99,0.00022986,60]
[338451668,1726646581531,500.0,0.00022986,60]
[338451669,1726646582832,822.77,0.00022986,60]
[338451670,1726646583673,500.0,0.00022986,60]
[338451671,1726646585389,2378.68,0.00022986,60]
[338451672,1726646585488,500.0,0.00022986,60]
[338451673,1726646585894,558.16,0.00022986,60]
[338451674,1726646585942,1080.42,0.00022986,60]
[338451675,1726646588607,1607.95,0.00022986,60]
[338451676,1726646590115,500.0,0.00022986,60]
[338451677,1726646593658,1108.23,0.00022986,60]
[338451678,1726646594377,500.0,0.00022986,60]
[338451679,1726646595408,1661.97,0.00022986,60]
[338451680,1726646595800,1442.06,0.00022986,60]
[338451681,1726646597362,696.16,0.00022986,60]
[338451682,1726646598091,547.39,0.00022986,60]
[338451683,1726646598562,1036.44,0.00022986,60]
[338451684,1726646602259,682.55,0.00022986,60]
[338451685,1726646604337,500.0,0.00022986,60]
[338451686,1726646605765,500.0,0.00022986,60]
[338451687,1726646606031,566.7,0.00022986,60]
[338451688,1726646606484,1576.48,0.00022986,60]
[338451689,1726646607061,501.26,0.00022986,60]
[338451690,1726646607403,500.0,0.00022986,60]
[338451691,1726646608735,505.49503684,0.00022986,60]
[338451692,1726646609852,500.0,0.00022986,60]
[338451693,1726646610943,2452.5,0.00022986,60]
[338451694,1726646611182,500.0,0.00022986,60]
[338451695,1726646611580,633.14,0.00022986,60]
[338451696,1726646611957,568.68349003,0.00022986,60]
[338451697,1726646613087,500.0,0.00022986,60]
[338451698,1726646614320,500.0,0.00022986,60]
[338451699,1726646614827,500.0,0.00022986,60]
[338451700,1726646616929,500.0,0.00022986,60]
[338451701,1726646618776,500.0,0.00022999,60]
[338451702,1726646619227,621.3,0.00022999,60]
[338451703,1726646619658,983.65,0.00022999,60]
[338451704,1726646620118,1000.0,0.00022999,60]
[338451705,1726646620952,500.0,0.00022999,60]
[338451706,1726646621194,500.0,0.00022999,60]
[338451707,1726646621684,2819.27,0.00022999,60]
[338451708,1726646621742,1158.79,0.00022999,60]
[338451709,1726646621952,500.0,0.00022999,60]
[338451710,1726646623173,500.0,0.00022999,60]
[338451711,1726646627534,500.0,0.00022999,60]
[338451712,1726646629064,601.29,0.00022999,60]
[338451713,1726646629187,1032.93,0.00022999,60]
[338451714,1726646630302,1824.43,0.00022999,60]
[338451715,1726646631383,1617.78,0.00022999,60]
[338451716,1726646632105,892.52,0.00022999,60]
[338451717,1726646632858,1028.13,0.00022999,60]
[338451718,1726646633044,500.0,0.00022999,60]
[338451719,1726646633487,500.0,0.00022999,60]
[338451720,1726646635579,500.0,0.00022999,60]
[338451721,1726646636831,2467.75,0.00022999,60]
[338451722,1726646637742,500.0,0.00022999,60]
[338451723,1726646639264,500.0,0.00022999,60]
[338451724,1726646640414,500.0,0.00022999,60]
[338451725,1726646641827,1300.17,0.00022999,60]
[338451726,1726646642137,520.59,0.00022999,60]
[338451727,1726646642615,500.0,0.00022999,60]
[338451728,1726646642943,552.7,0.00022999,60]
[338451729,1726646643941,500.0,0.00022999,60]
[338451730,1726646644509,500.0,0.00022999,60]
[338451731,1726646644908,2492.32,0.00022999,60]
[338451732,1726646646174,500.0,0.00022999,60]
[338451733,1726646646640,500.0,0.00022999,60]
[338451734,1726646647728,500.0,0.00022999,60]
[338451735,1726646647915,178.69640053,0.00022999,60]
[338451736,1726646649167,4245.83,0.00022999,60]
[338451737,1726646649656,1342.81,0.00022999,60]
[338451738,1726646650564,500.0,0.00022999,60]
[338451739,1726646653886,500.0,0.00022999,60]
[338451740,1726646655514,1757.0,0.00022999,60]
[338451741,1726646656974,935.16,0.00022999,60]
[338451742,1726646657203,500.0,0.00022999,60]
[338451743,1726646657405,500.0,0.00022999,60]
[338451744,1726646658914,1586.28,0.00022999,60]
[338451745,1726646659940,521.47033533,0.00022999,60]
[338451746,1726646659986,3425.23,0.00022999,60]
[338451747,1726646660610,669.39,0.00022999,60]
[338451748,1726646660750,1577.32,0.00022999,60]
[338451749,1726646661561,761.9,0.00022999,60]
[338451750,1726646663255,714.11,0.00022999,60]
[338451751,1726646666569,1776.34,0.00022999,60]
[338451752,1726646667787,1543.38,0.00022999,60]
[338451753,1726646668260,1222.04,0.00022999,60]
[338451754,1726646669237,2590.98,0.00022999,60]
[338451755,1726646669351,2148.4,0.00022999,60]
[338451756,1726646671228,500.0,0.00022999,60]
[338451757,1726646671307,851.49,0.00022999,60]
[338451758,1726646671870,500.0,0.00022999,60]
[338451759,1726646672172,8135.84,0.00022999,60]
[338451760,1726646673517,1152.15,0.00022999,60]
[338451761,1726646674426,500.0,0.00022999,60]
[338451762,1726646674886,563.58,0.00022999,60]
[338451763,1726646675217,500.0,0.00022999,60]
[338451764,1726646675719,500.0,0.00022999,60]
[338451765,1726646676735,500.0,0.00022999,60]
[338451766,1726646677128,500.0,0.00022999,60]
[338451767,1726646678168,546.74,0.00022999,60]
[338451768,1726646678903,1052.26,0.00022999,60]
[338451769,1726646680248,500.0,0.00022999,60]
[338451770,1726646683041,500.0,0.00022999,60]
[338451771,1726646683339,1114.71,0.00022999,60]
[338451772,1726646684410,1847.81,0.00022999,60]
[338451773,1726646684582,1818.21,0.00022999,60]
[338451774,1726646685485,297.64331981,0.00022999,60]
[338451775,1726646686305,2259.46,0.00022999,60]
[338451776,1726646690117,500.0,0.00022999,60]
[338451777,1726646693521,8623.57,0.00022999,60]
[338451778,1726646694381,500.0,0.00022999,60]
[338451779,1726646695238,543.72,0.00022999,60]
[338451780,1726646698169,571.33,0.00022999,60]
[338451781,1726646698418,500.0,0.00022999,60]
[338451782,1726646699651,1414.97,0.00022999,60]
[338451783,1726646700209,500.0,0.00022999,60]
[338451784,1726646700462,18240.11,0.00022999,60]
[338451785,1726646702876,1870.5,0.00022999,60]
[338451786,1726646703921,500.0,0.00022999,60]
[338451787,1726646704209,500.0,0.00022999,60]
[338451788,1726646706826,545.66,0.00022999,60]
[338451789,1726646707933,500.0,0.00022999,60]
[338451790,1726646709676,500.0,0.00022999,60]
[338451792,1726646710780,500.0,0.00022999,60]
[338451793,1726646711014,500.0,0.00022999,60]
[338451794,1726646711991,500.0,0.00022999,60]
[338451795,1726646712108,960.55,0.00022999,60]
[338451796,1726646712543,3870.53,0.00022999,60]
[338451797,1726646712647,500.0,0.00022999,60]
[338451798,1726646713227,533.73269536,0.00022999,60]
[338451799,1726646713863,500.0,0.00022999,60]
[338451800,1726646714319,761.75,0.00022999,60]
[338451801,1726646714475,3447.27,0.00022999,60]
[338451802,1726646716005,817.54,0.00022999,60]
[338451803,1726646716137,536.05,0.00022999,60]
[338451804,1726646716917,2050.18,0.00022999,60]
[338451805,1726646717099,500.0,0.00022999,60]
[338451806,1726646718720,500.0,0.00022999,60]
[338451807,1726646719490,500.0,0.00022999,60]
[338451808,1726646719963,1830.14,0.00022999,60]
[338451809,1726646722906,500.0,0.00022999,60]
[338451810,1726646722980,500.0,0.00022999,60]
[338451811,1726646723191,976.6,0.00022999,60]
[338451812,1726646723529,534.62,0.00022999,60]
[338451813,1726646723701,2206.45,0.00022999,60]
[338451814,1726646725126,500.0,0.00022999,60]
[338451815,1726646725993,500.0,0.00022999,60]
[338451816,1726646726166,500.0,0.00022999,60]
[338451817,1726646727343,770.83,0.00022999,60]
[338451818,1726646729357,500.0,0.00022999,60]
[338451820,1726646730374,1870.48,0.00022999,60]
[338451821,1726646730718,500.0,0.00022999,60]
[338451822,1726646730861,622.12,0.00022999,60]
[338451823,1726646732075,1214.41,0.00022999,60]
[338451824,1726646732935,500.0,0.00022999,60]
[338451825,1726646733325,500.0,0.00022999,60]
[338451826,1726646733800,1975.51,0.00022999,60]
[338451827,1726646734614,500.0,0.00022999,60]
[338451828,1726646735552,650.84,0.00022999,60]
[338451829,1726646736456,2228.98,0.00022999,60]
[338451830,1726646736525,3907.24,0.00022999,60]
[338451831,1726646736684,500.0,0.00022999,60]
[338451832,1726646737589,500.0,0.00022999,60]
[338451833,1726646739025,500.0,0.00022999,60]
[338451834,1726646740051,500.0,0.00022999,60]
[338451835,1726646742093,606.22,0.00022999,60]
[338451836,1726646742888,508.7207986,0.00022999,60]
[338451837,1726646743269,500.0,0.00022999,60]
[338451838,1726646743345,297.48112711,0.00022999,60]
[338451839,1726646744454,3582.22,0.00022999,60]
[338451840,1726646745426,500.0,0.00022999,60]
[338451841,1726646747503,914.22,0.00022999,60]
[338451842,1726646748087,500.0,0.00022999,60]
[338451843,1726646749086,500.0,0.00022999,60]
[338451844,1726646749373,1965.78,0.00022999,60]
[338451845,1726646749576,1707.2,0.00022999,60]
[338451846,1726646750404,500.0,0.00022999,60]
[338451847,1726646752333,647.08,0.00022999,60]
[338451848,1726646753206,500.0,0.00022999,60]
[338451849,1726646753264,1917.65,0.00022999,60]
[338451850,1726646754543,500.0,0.00022999,60]
[338451851,1726646755721,1680.09,0.00022999,60]
[338451852,1726646755817,500.0,0.00022999,60]
[338451853,1726646756053,1795.63,0.00022999,60]
[338451854,1726646757049,1647.35,0.00022999,60]
[338451855,1726646757693,912.18,0.00022999,60]
[338451856,1726646757764,1325.51,0.00022999,60]
[338451857,1726646758181,527.53,0.00022999,60]
[338451858,1726646758960,2698.94,0.00022999,60]
[338451859,1726646759911,500.0,0.00022999,60]
[338451860,1726646760339,500.0,0.00022999,60]
[338451861,1726646763448,500.0,0.00022999,60]
[338451862,1726646765371,500.0,0.00022999,60]
[338451863,1726646766830,500.0,0.00022999,60]
[338451864,1726646767161,500.0,0.00022999,60]
[338451865,1726646768791,500.0,0.00022999,60]
[338451866,1726646768965,1806.26,0.00022999,60]
[338451867,1726646770942,500.0,0.00022999,60]
[338451868,1726646771731,565.58,0.00022999,60]
[338451869,1726646772710,500.0,0.00022999,60]
[338451870,1726646773811,500.0,0.00022999,60]
[338451871,1726646774955,830.24,0.00022999,60]
[338451872,1726646776021,500.0,0.00022999,60]
[338451873,1726646776313,1507.8,0.00022999,60]
[338451874,1726646776484,1889.86,0.00022999,60]
[338451875,1726646777677,500.0,0.00022999,60]
[338451876,1726646777932,1737.77,0.00022999,60]
[338451877,1726646779982,857.54,0.00022999,60]
[338451878,1726646780652,500.0,0.00022999,60]
[338451879,1726646781903,500.0,0.00022999,60]
[338451880,1726646783706,500.0,0.00022999,60]
[338451881,1726646783989,2034.77,0.00022999,60]
[338451882,1726646785573,350.74295743,0.00022999,60]
[338451884,1726646787081,2157.31,0.00022999,60]
[338451885,1726646787506,500.0,0.00022999,60]
[338451886,1726646788865,500.0,0.00022999,60]
[338451887,1726646789552,354.16840465,0.00022999,60]
[338451888,1726646790223,500.0,0.00022999,60]
[338451889,1726646791009,500.0,0.00022999,60]
[338451890,1726646792466,500.0,0.00022999,60]
[338451891,1726646792530,500.0,0.00022999,60]
[338451892,1726646793218,500.0,0.00022999,60]
[338451893,1726646793395,7952.9,0.00022999,60]
[338451894,1726646795098,615.97,0.00022999,60]
[338451895,1726646795589,1018.17,0.00022999,60]
[338451896,1726646796164,886.01,0.00022999,60]
[338451897,1726646796282,1502.32,0.00022999,60]
[338451898,1726646797431,500.0,0.00022999,60]
[338451899,1726646798479,589.16,0.00022999,60]
[338451900,1726646803126,500.0,0.00022999,60]
[338451901,1726646804636,557.53,0.00022999,60]
[338451902,1726646804688,1761.1,0.00022999,60]
[338451903,1726646805009,500.0,0.00022999,60]
[338451904,1726646806636,588.67,0.00022999,60]
[338451905,1726646806839,1873.45,0.00022999,60]
[338451906,1726646807626,653.77,0.00022999,60]
[338451907,1726646807920,2168.48,0.00022999,60]
[338451908,1726646809506,500.0,0.00022999,60]
[338451909,1726646812715,500.0,0.00022999,60]
[338451910,1726646813992,500.0,0.00022999,60]
[338451911,1726646815957,500.0,0.00022999,60]
[338451912,1726646817646,500.0,0.00022999,60]
[338451913,1726646818097,500.0,0.00022999,60]
[338451914,1726646818151,1044.72,0.00022999,60]
[338451915,1726646820141,592.28,0.00022999,60]
[338451916,1726646820563,500.0,0.00022999,60]
[338451917,1726646821428,1943.13,0.00022999,60]
[338451918,1726646821593,1519.41,0.00022999,60]
[338451920,1726646825690,500.0,0.00022999,60]
[338451921,1726646828205,500.0,0.00022999,60]
[338451922,1726646828694,500.0,0.00022999,60]
[338451923,1726646829341,1664.77,0.00022999,60]
[338451924,1726646830336,1203.08,0.00022999,60]
[338451925,1726646837450,500.0,0.00022999,60]
[338451926,1726646837560,540.09451062,0.00022999,60]
[338451927,1726646837951,1126.34,0.00022999,60]
[338451928,1726646838003,500.0,0.00022999,60]
[338451929,1726646840076,4238.77,0.00022999,60]
[338451930,1726646840664,827.31,0.00022999,60]
[338451931,1726646842761,500.0,0.00022999,60]
[338451932,1726646843643,1748.41,0.00022999,60]
[338451933,1726646843978,500.0,0.00022999,60]
[338451934,1726646845284,500.0,0.00022999,60]
[338451935,1726646846951,1893.64,0.00022999,60]
[338451936,1726646848066,3651.71,0.00022999,60]
[338451937,1726646850779,1104.45,0.00022999,60]
[338451938,1726646851372,673.32,0.00022999,60]
[338451939,1726646852254,500.0,0.00022999,60]
[338451940,1726646855732,500.0,0.00022999,60]
[338451941,1726646855787,1328.0,0.00022999,60]
[338451942,1726646856617,529.67,0.00022999,60]
[338451943,1726646857019,715.01,0.00022999,60]
[338451944,1726646857085,811.89,0.00022999,60]
[338451945,1726646857777,500.0,0.00022999,60]
[338451946,1726646862863,1650.08,0.00022999,60]
[338451947,1726646862981,939.08,0.00022999,60]
[338451948,1726646864567,807.93,0.00022999,60]
[338451949,1726646865452,1163.08,0.00022999,60]
[338451950,1726646865823,500.0,0.00022999,60]
[338451951,1726646867561,896.12,0.00022999,60]
[338451952,1726646868472,1683.79,0.00022999,60]
[338451953,1726646868961,500.0,0.00022999,60]
[338451955,1726646872411,502.63285672,0.00022999,60]
[338451956,1726646872727,641.5,0.00022999,60]
[338451957,1726646873071,500.0,0.00022999,60]
[338451958,1726646873862,500.0,0.00022999,60]
[338451959,1726646874669,1441.65,0.00022999,60]
[338451960,1726646877984,500.0,0.00022999,60]
[338451961,1726646878347,1480.15,0.00022999,60]
[338451963,1726646879545,500.0,0.00022999,60]
[338451964,1726646879588,721.78,0.00022999,60]
[338451965,1726646879834,500.0,0.00022999,60]
[338451966,1726646880718,8781.86,0.00022999,60]
[338451967,1726646880913,589.26,0.00022999,60]
[338451968,1726646885013,2279.57,0.00022999,60]
[338451969,1726646885526,990.36,0.00022999,60]
[338451970,1726646885577,1702.32,0.00022999,60]
[338451971,1726646885771,500.0,0.00022999,60]
[338451972,1726646886254,7796.85,0.00022999,60]
[338451973,1726646887452,500.0,0.00022999,60]
[338451974,1726646889283,1742.45,0.00022999,60]
[338451975,1726646890996,749.01,0.00022999,60]
[338451976,1726646891037,500.0,0.00022999,60]
[338451977,1726646896090,500.0,0.00022999,60]
[338451978,1726646896438,918.15,0.00022999,60]
[338451979,1726646897705,831.82,0.00022999,60]
[338451980,1726646898806,1068.26,0.00022999,60]
[338451981,1726646899065,500.0,0.00022999,60]
[338451982,1726646899767,500.0,0.00022999,60]
[338451983,1726646900716,825.91,0.00022999,60]
[338451984,1726646900766,500.0,0.00022999,60]
[338451986,1726646907389,500.0,0.00022999,60]
[338451987,1726646908537,523.95,0.00022999,60]
[338451988,1726646909296,500.0,0.00022999,60]
[338451989,1726646909657,521.06,0.00022999,60]
[338451990,1726646909699,8264.25,0.00022999,60]
[338451991,1726646911070,512.41,0.00022999,60]
[338451992,1726646911228,1838.04,0.00022999,60]
[338451993,1726646911503,17480.11,0.00022999,60]
[338451994,1726646912351,500.0,0.00022999,60]
[338451995,1726646912400,1187.2,0.00022999,60]
[338451996,1726646912677,564.16,0.00022999,60]
[338451997,1726646912724,502.42661494,0.00022999,60]
[338451998,1726646912778,4068.92,0.00022999,60]
[338451999,1726646915588,500.0,0.00022999,60]
[338452000,1726646917466,500.0,0.00022999,60]
[338452001,1726646918484,500.0,0.00022999,60]
[338452002,1726646919960,1085.13,0.00022999,60]
[338452003,1726646922623,605.28743112,0.00022999,60]
[338452004,1726646924032,1110.51,0.00022999,60]
[338452005,1726646924456,794.45,0.00022999,60]
[338452006,1726646924992,730.01,0.00022999,60]
[338452007,1726646926632,500.0,0.00022999,60]
[338452008,1726646926949,500.0,0.00022999,60]
[338452009,1726646931565,931.01,0.00022999,60]
[338452010,1726646932001,3709.26,0.00022999,60]
[338452011,1726646932275,500.0,0.00022999,60]
[338452012,1726646932616,500.0,0.00022999,60]
[338452013,1726646933335,500.0,0.00022999,60]
[338452014,1726646933415,2483.02,0.00022999,60]
[338452015,1726646933715,500.0,0.00022999,60]
[338452016,1726646935019,667.15,0.00022999,60]
[338452017,1726646936997,500.0,0.00022999,60]
[338452018,1726646937639,2058.89,0.00022999,60]
[338452019,1726646937946,250.0,0.00022999,60]
[338452020,1726646939648,762.97,0.00022999,60]
[338452021,1726646942170,500.0,0.00022999,60]
[338452022,1726646942421,2364.92,0.00022999,60]
[338452023,1726646942590,500.0,0.00022999,60]
[338452024,1726646944867,500.0,0.00022999,60]
[338452025,1726646945951,1765.17,0.00022999,60]
[338452026,1726646947234,650.23,0.00022999,60]
[338452027,1726646948246,500.0,0.00022999,60]
[338452028,1726646953143,500.0,0.00022999,60]
[338452029,1726646953316,500.0,0.00022999,60]
[338452030,1726646953792,1246.0,0.00022999,60]
[338452031,1726646953850,623.72,0.00022999,60]
[338452032,1726646954347,500.0,0.00022999,60]
[338452033,1726646954570,500.0,0.00022999,60]
[338452034,1726646956323,943.35,0.00022999,60]
[338452035,1726646960430,500.0,0.00022999,60]
[338452036,1726646961689,764.35,0.00022999,60]
[338452037,1726646962187,500.0,0.00022999,60]
[338452038,1726646963104,500.0,0.00022999,60]
[338452039,1726646963195,500.0,0.00022999,60]
[338452040,1726646963243,580.96,0.00022999,60]
[338452041,1726646964449,500.0,0.00022999,60]
[338452042,1726646967970,1883.87,0.00022999,60]
[338452043,1726646968401,500.0,0.00022999,60]
[338452044,1726646970943,4952.76,0.00022999,60]
[338452045,1726646971160,500.0,0.00022999,60]
[338452046,1726646971377,500.0,0.00022999,60]
[338452047,1726646972035,1837.75,0.00022999,60]
[338452048,1726646973044,1373.65,0.00022999,60]
[338452049,1726646973865,500.0,0.00022999,60]
[338452051,1726646974564,500.0,0.00022999,60]
[338452052,1726646975024,500.0,0.00022999,60]
[338452053,1726646975208,500.0,0.00022999,60]
[338452054,1726646975304,765.41,0.00022999,60]
[338452055,1726646975413,500.0,0.00022999,60]
[338452056,1726646977803,3282.52,0.00022999,60]
[338452057,1726646978590,500.0,0.00022999,60]
[338452058,1726646978745,2602.9,0.00022999,60]
[338452059,1726646978804,1753.89,0.00022999,60]
[338452060,1726646979753,500.0,0.00022999,60]
[338452061,1726646980237,1171.13,0.00022999,60]
[338452062,1726646984781,500.0,0.00022999,60]
[338452063,1726646986501,500.0,0.00022999,60]
[338452064,1726646987736,816.01,0.00022999,60]
[338452068,1726646989479,500.0,0.00022999,60]
[338452069,1726646989858,1008.41,0.00022999,60]
[338452070,1726646990743,1792.55,0.00022999,60]
[338452071,1726646992472,1107.26,0.00022999,60]
[338452072,1726646992520,4103.23,0.00022999,60]
[338452073,1726646993336,500.0,0.00022999,60]
[338452074,1726646993595,500.0,0.00022999,60]
[338452075,1726646994832,563.39,0.00022999,60]
[338452076,1726646994953,1444.98,0.00022999,60]
[338452077,1726646997244,1770.82,0.00022999,60]
[338452078,1726646998480,518.12,0.00022999,60]
[338452079,1726646998688,531.19,0.00022999,60]
[338452080,1726646998757,500.0,0.00022999,60]
[338452081,1726646999240,1921.79,0.00022999,60]
[338452083,1726647000669,3744.44,0.00022999,60]
[338452084,1726647002503,2133.43,0.00022999,60]
[338452085,1726647002982,500.0,0.00022999,60]
[338452090,1726647005096,500.0,0.00022999,60]
[338452091,1726647007062,1687.73,0.00022999,60]
[338452092,1726647007221,728.62,0.00022999,60]
[338452093,1726647008004,512.34,0.00022999,60]
[338452094,1726647008552,777.27,0.00022999,60]
[338452095,1726647009488,547.53,0.00022999,60]
[338452096,1726647009539,500.0,0.00022999,60]
[338452097,1726647011352,618.34,0.00022999,60]
[338452098,1726647011874,500.0,0.00022999,60]
[338452099,1726647012836,2542.42,0.00022999,60]
[338452100,1726647012903,753.26,0.00022999,60]
[338452101,1726647012971,7621.53,0.00022999,60]
[338452102,1726647013634,500.0,0.00022999,60]
[338452103,1726647013994,500.0,0.00022999,60]
[338452104,1726647014690,500.0,0.00022999,60]
[338452105,1726647015313,500.0,0.00022999,60]
[338452106,1726647015398,581.23,0.00022999,60]
[338452107,1726647018358,500.0,0.00022999,60]
[338452108,1726647019568,3303.63,0.00022999,60]
[338452109,1726647019723,1893.19,0.00022999,60]
[338452110,1726647020142,1613.85,0.00022999,60]
[338452111,1726647020435,1720.81,0.00022999,60]
[338452112,1726647023449,500.0,0.00022999,60]
[338452113,1726647023895,500.0,0.00022999,60]
[338452114,1726647024087,328.26462349,0.00022999,60]
[338452115,1726647024526,500.0,0.00022999,60]
[338452116,1726647026405,500.0,0.00022999,60]
[338452117,1726647028300,500.0,0.00022999,60]
[338452118,1726647029225,1294.75,0.00022999,60]
[338452119,1726647029940,569.37,0.00022999,60]
[338452120,1726647030018,500.0,0.00022999,60]
[338452121,1726647030406,564.61,0.00022999,60]
[338452122,1726647030653,500.0,0.00022999,60]
[338452124,1726647031690,1964.76,0.00022999,60]
[338452166,1726647032948,-299.25945273,0.00018094,2]
[338452167,1726647032961,-0.74054727,0.00018094,2]
[338452168,1726647032972,-300.0,0.00018094,2]
[338452169,1726647032982,-962.1591885,0.00018095,2]
[338452170,1726647033007,-2948.69904564,0.00018095,2]
[338452171,1726647035239,500.0,0.00022999,60]
[338452172,1726647036101,2370.1,0.00022999,60]
[338452173,1726647037405,1083.57,0.00022999,60]
[338452179,1726647037911,675.17,0.00022999,60]
[338452180,1726647038196,-811.79165222,0.00018095,2]
[338452181,1726647038208,-12761.74924267,0.00018095,2]
[338452182,1726647038250,-2119.03510944,0.00018095,2]
[338452183,1726647038261,-5296.56576153,0.00018095,2]
[338452184,1726647038270,-250.0,0.00018615,2]
[338452185,1726647038280,-250.0,0.00018666,2]
[338452186,1726647038289,-250.0,0.00018717,2]
[338452187,1726647038299,-250.0,0.00018768,2]
[338452189,1726647038308,-250.0,0.00018819,2]
[338452191,1726647038317,-250.0,0.0001887,2]
[338452193,1726647038326,-250.0,0.00018922,2]
[338452195,1726647038335,-250.0,0.00018973,2]
[338452197,1726647038345,-250.0,0.00019024,2]
[338452198,1726647038354,-250.0,0.00019075,2]
[338452199,1726647038364,-250.0,0.00019126,2]
[338452201,1726647038374,-250.0,0.00019177,2]
[338452203,1726647038383,-1000.0,0.00019178,2]
[338452205,1726647038392,-178.662919,0.00019178,2]
[338452207,1726647038401,-699.320132,0.00019178,2]
[338452209,1726647038411,-250.0,0.00019228,2]
[338452210,1726647038419,-250.0,0.00019279,2]
[338452212,1726647038429,-250.0,0.0001933,2]
[338452214,1726647038439,-250.0,0.00019381,2]
[338452215,1726647038448,-250.0,0.00019432,2]
[338452216,1726647038457,-6460.9864678,0.00019476,2]
[338452217,1726647038467,-250.0,0.00019483,2]
[338452218,1726647038476,-250.0,0.00019534,2]
[338452219,1726647038485,-250.0,0.00019585,2]
[338452220,1726647038494,-420.0,0.00019741,2]
[338452221,1726647038504,-500.0,0.00019781,2]
[338452222,1726647038513,-500.0,0.00019781,2]
[338452223,1726647038522,-288.0553133,0.00019781,2]
[338452224,1726647038531,-500.0,0.00019781,2]
[338452225,1726647038540,-500.0,0.00019781,2]
[338452226,1726647038550,-500.0,0.00019781,2]
[338452227,1726647038559,-215.1715381,0.00019781,2]
[338452228,1726647038568,-500.0,0.00019781,2]
[338452229,1726647038578,-500.0,0.00019781,2]
[338452230,1726647038587,-500.0,0.00019781,2]
[338452231,1726647038597,-500.0,0.00019781,2]
[338452232,1726647038607,-500.0,0.00019781,2]
[338452233,1726647038616,-6460.9864678,0.00019797,2]
[338452234,1726647038626,-86024.9278175,0.00019854,3]
[338452235,1726647038636,-39380.88087884,0.00019854,3]
[338452236,1726647038725,500.0,0.00022999,60]
[338452237,1726647039339,500.0,0.00022999,60]
[338452244,1726647040254,-31112.72151066,0.00019854,3]
[338452245,1726647040263,-150.276,0.00019856,2]
[338452246,1726647040272,-153.538,0.00019856,2]
[338452247,1726647040282,-608.596,0.00019856,2]